[Event "Asian Nation Cup Women 2018"]
[Site "Hamedan"]
[Date "2018.08.01"]
[Round "5"]
[White "Nguyen, Thi Mai Hung"]
[Black "Aakanksha Hagawane"]
[Result "1-0"]
[ECO "D74"]
[WhiteElo "2226"]
[BlackElo "2292"]
[Annotator "NA"]
[PlyCount "83"]
[EventDate "2018.07.27"]
[EventType "swiss"]
[EventCountry "IRI"]
[SourceTitle "playchess.com"]
[Source "ChessBase"]
[SourceQuality "1"]
[WhiteTeam "Vietnam"]
[BlackTeam "India"]
[WhiteTeamCountry "VIE"]
[BlackTeamCountry "IND"]
[TimeControl "40/5400+30:1800+30"]

1. d4 {[%emt 0:00:00]} Nf6 {[%emt 0:00:00]} 2. Nf3 {[%emt 0:00:00]} g6 {[%emt 0:00:00]} 3. g3 {[%emt 0:00:00]} Bg7 {[%emt 0:00:00]} 4. Bg2 {[%emt 0:00:00]} O-O {[%emt 0:00:00]} 5. c4 {[%emt 0:00:00]} d5 {[%emt 0:00:14]} 6. cxd5 {[%emt 0:00:07]} Nxd5 {[%emt 0:00:08]} 7. O-O {[%emt 0:00:05]} Nc6 {[%emt 0:00:27]} 8. e4 {[%emt 0:00:42]} Nb6 {[%emt 0:00:03]} 9. d5 {[%emt 0:00:26]} Na5 {[%emt 0:01:56]} 10. Nc3 {[%emt 0:00:43]} c6 {[%emt 0:02:47]} 11. Bf4 {[%emt 0:00:13]} Nac4 {[%emt 0:04:24]} 12. b3 {[%emt 0:00:55]} Nd6 {[%emt 0:10:39]} 13. e5 {[%emt 0:00:52]} cxd5 {[%emt 0:01:47]} 14. exd6 {[%emt 0:00:29]} Bxc3 {[%emt 0:00:09]} 15. Rc1 {[%emt 0:00:07]} Bg7 {[%emt 0:01:02]} 16. dxe7 {[%emt 0:00:57]} Qxe7 {[%emt 0:00:02]} 17. Re1 {[%emt 0:00:27]} Be6 {[%emt 0:06:24]} 18. Ng5 {[%emt 0:07:25]} Qf6 {[%emt 0:03:51]} 19. Qd2 {[%emt 0:07:40]} Qd4 {[%emt 0:11:15]} 20. Nxe6 {[%emt 0:14:35]} Qxd2 {[%emt 0:04:55]} 21. Bxd2 {[%emt 0:00:05]} fxe6 {[%emt 0:00:05]} 22. Rxe6 Rac8 {[%emt 0:06:01]} 23. a4 {[%emt 0:03:59]} Rxc1+ {[%emt 0:05:00]} 24. Bxc1 {[%emt 0:00:41]} Rc8 {[%emt 0:02:24]} 25. Bf4 {[%emt 0:01:29]} Kf7 {[%emt 0:03:51]} 26. Re1 {[%emt 0:03:32]} a5 {[%emt 0:02:01]} 27. Rd1 {[%emt 0:24:23]} d4 {[%emt 0:17:10]} 28. Bd2 {[%emt 0:03:12]} Rc5 {[%emt 0:01:09]} 29. Rc1 {[%emt 0:04:22]} Nd7 {[%emt 0:05:06]} 30. Bxb7 {[%emt 0:05:24]} Rxc1+ {[%emt 0:02:44]} 31. Bxc1 {[%emt 0:00:02]} Bf8 {[%emt 0:02:03]} 32. Bd2 {[%emt 0:04:32]} Kf6 {[%emt 0:02:46]} 33. f4 {[%emt 0:04:20]} Nc5 {[%emt 0:01:59]} 34. Bd5 {[%emt 0:00:15]} Na6 {[%emt 0:00:53]} 35. Bxa5 {[%emt 0:00:09]} Nb4 {[%emt 0:00:03]} 36. Be4 {[%emt 0:01:04]} Na2 {[%emt 0:01:34]} 37. Bb6 {[%emt 0:04:29]} Nc1 {[%emt 0:01:16]} 38. Bc2 {[%emt 0:04:22]} d3 {[%emt 0:01:09]} 39. Bd1 {[%emt 0:00:02]} Bb4 {[%emt 0:01:24]} 40. a5 {[%emt 0:05:02]} Ne2+ {[%emt 0:00:42]} 41. Kf2 {[%emt 0:30:02]} Nc3 {[%emt 0:30:23]} 42. Bf3 {[%emt 0:00:11]} 1-0

[Event "Asian Nation Cup Women 2018"]
[Site "Hamedan"]
[Date "2018.08.02"]
[Round "6"]
[White "Khademalsharieh, Sarasadat"]
[Black "Tokhirjonova, Gulrukhbegim"]
[Result "1/2-1/2"]
[ECO "E11"]
[WhiteElo "2408"]
[BlackElo "2350"]
[Annotator "NA"]
[PlyCount "69"]
[EventDate "2018.07.27"]
[EventType "swiss"]
[EventCountry "IRI"]
[SourceTitle "playchess.com"]
[Source "ChessBase"]
[SourceQuality "1"]
[WhiteTeam "Iran"]
[BlackTeam "Uzbekistan"]
[WhiteTeamCountry "IRI"]
[BlackTeamCountry "UZB"]
[TimeControl "40/5400+30:1800+30"]

1. d4 {[%emt 0:00:00]} Nf6 {[%emt 0:00:11]} 2. Nf3 {[%emt 0:00:31]} e6 {[%emt 0:00:45]} 3. c4 {[%emt 0:00:08]} Bb4+ {[%emt 0:00:14]} 4. Nbd2 {[%emt 0:00:07]} O-O {[%emt 0:01:00]} 5. a3 {[%emt 0:00:03]} Be7 {[%emt 0:02:20]} 6. e4 {[%emt 0:00:07]} d5 {[%emt 0:03:40]} 7. e5 {[%emt 0:00:29]} Nfd7 {[%emt 0:00:05]} 8. Bd3 {[%emt 0:00:04]} c5 {[%emt 0:00:20]} 9. O-O {[%emt 0:00:25]} Nc6 {[%emt 0:00:15]} 10. cxd5 {[%emt 0:01:09]} exd5 {[%emt 0:00:07]} 11. Re1 {[%emt 0:00:03]} Qb6 {[%emt 0:02:27]} 12. Qc2 {[%emt 0:04:10]} h6 {[%emt 0:01:50]} 13. dxc5 {[%emt 0:14:39]} Nxc5 {[%emt 0:01:26]} 14. b4 {[%emt 0:02:18]} Nxd3 {[%emt 0:04:35]} 15. Qxd3 {[%emt 0:00:11]} Be6 {[%emt 0:00:28]} 16. Nb3 {[%emt 0:00:58]} a5 {[%emt 0:07:34]} 17. b5 {[%emt 0:10:45]} a4 {[%emt 0:03:13]} 18. Be3 {[%emt 0:00:48]} Qc7 {[%emt 0:01:49]} 19. Nbd4 {[%emt 0:04:44]} Nxd4 {[%emt 0:06:31]} 20. Nxd4 {[%emt 0:00:57]} Qd7 {[%emt 0:05:50]} 21. Rac1 {[%emt 0:07:51]} Rfc8 {[%emt 0:03:14]} 22. f4 {[%emt 0:01:59]} g6 {[%emt 0:02:51]} 23. b6 {[%emt 0:07:16]} Kg7 {[%emt 0:04:35]} 24. Nb5 {[%emt 0:04:50]} Bf5 {[%emt 0:09:28]} 25. Qe2 {[%emt 0:01:09]} Rc4 {[%emt 0:11:58]} 26. Rxc4 {[%emt 0:19:13]} dxc4 {[%emt 0:00:14]} 27. Nd6 {[%emt 0:02:47]} Bxd6 {[%emt 0:04:02]} 28. exd6 {[%emt 0:00:06]} Qxd6 {[%emt 0:00:05]} 29. Qxc4 {[%emt 0:00:08]} Kg8 {[%emt 0:00:08]} 30. Bc5 {[%emt 0:00:50]} Be6 {[%emt 0:03:15]} 31. Qc1 {[%emt 0:02:28]} Qc6 {[%emt 0:02:06]} 32. Qe3 {[%emt 0:00:32]} Re8 {[%emt 0:00:20]} 33. Qd4 {[%emt 0:01:12]} Rc8 {[%emt 0:02:00]} 34. Bb4 {[%emt 0:02:08]} Qd5 {[%emt 0:00:14]} 35. Qxd5 {[%emt 0:01:04]} 1/2-1/2

[Event "Asian Nation Cup Women 2018"]
[Site "Hamedan"]
[Date "2018.08.02"]
[Round "6"]
[White "Nakhbayeva, Guliskhan"]
[Black "Karavade, Eesha"]
[Result "0-1"]
[ECO "D31"]
[WhiteElo "2352"]
[BlackElo "2378"]
[Annotator "NA"]
[PlyCount "126"]
[EventDate "2018.07.27"]
[EventType "swiss"]
[EventCountry "IRI"]
[SourceTitle "playchess.com"]
[Source "ChessBase"]
[SourceQuality "1"]
[WhiteTeam "Kazakhstan"]
[BlackTeam "India"]
[WhiteTeamCountry "KAZ"]
[BlackTeamCountry "IND"]
[TimeControl "40/5400+30:1800+30"]

1. d4 {[%emt 0:00:00]} d5 {[%emt 0:00:00]} 2. c4 {[%emt 0:00:00]} e6 {[%emt 0:00:00]} 3. Nc3 {[%emt 0:00:00]} a6 {[%emt 0:00:20]} 4. cxd5 {[%emt 0:00:01]} exd5 {[%emt 0:00:08]} 5. Bf4 {[%emt 0:00:04] D31: Queen's Gambit Declined: Semi-Slav without ...Nf6 (+ Marshall Gambit and Noteboom) and Exchange Variation lines without ...Nf6} Nf6 {[%emt 0:00:33] LiveBook: 59 Games} 6. Qc2 {[%emt 0:01:07]} Bd6 {[%emt 0:02:01]} 7. Bxd6 {[%emt 0:00:12]} Qxd6 {[%emt 0:00:09]} 8. e3 {[%emt 0:00:07]} Nc6 $146 {[%emt 0:06:33]} ({Predecessor:} 8... O-O 9. Bd3 Re8 10. Nge2 Bg4 11. f3 Bh5 12. Qd2 Bg6 13. O-O c5 14. Bxg6 hxg6 15. dxc5 Qxc5 16. Nd4 Nc6 17. Rac1 Nxd4 18. Qxd4 Qxd4 {½-½ (18) Jankovic,A (2564)-Predojevic,B (2642) Zadar 2011}) 9. a3 {[%emt 0:02:58]} Bg4 {[%emt 0:05:00]} 10. Bd3 {[%emt 0:00:22]} O-O {[%emt 0:05:06]} 11. h3 {[%emt 0:06:27]} Bh5 {[%emt 0:00:43]} 12. Nge2 {[%emt 0:02:37]} Bg6 {[%emt 0:01:51]} 13. O-O {[%emt 0:01:00]} Bxd3 {[%emt 0:02:25]} 14. Qxd3 {[%emt 0:00:04]} Rfe8 {[%emt 0:00:41]} 15. Nf4 {[%emt 0:09:42]} Nd8 {[%emt 0:02:01]} 16. Na4 {[%emt 0:06:48]} Ne6 {[%emt 0:04:05]} 17. Nxe6 {[%emt 0:00:46]} Qxe6 {[%emt 0:03:06]} 18. Nc5 {[%emt 0:01:06]} Qb6 {[%emt 0:04:19]} 19. f3 {[%emt 0:05:42]} Re7 {[%emt 0:03:27]} 20. b4 {[%emt 0:13:05]} Rae8 {[%emt 0:01:59]} 21. Rfe1 {[%emt 0:01:20]} Nd7 {[%emt 0:01:48]} 22. Rad1 {[%emt 0:07:34]} c6 {[%emt 0:07:28]} 23. e4 dxe4 {[%emt 0:03:02]} 24. fxe4 {[%emt 0:07:55]} Nxc5 {[%emt 0:00:57]} 25. bxc5 {[%emt 0:00:10]} Qc7 {[%emt 0:00:06]} 26. Re3 {[%emt 0:05:42]} h6 $11 {[%emt 0:03:28]} 27. Rf1 Rd8 {[%emt 0:01:53]} 28. e5 {[%emt 0:03:54]} Rxe5 {[%emt 0:03:46]} 29. Ref3 {[%emt 0:06:33]} Re7 {[%emt 0:04:27]} 30. Rg3 {[%emt 0:03:54]} Rd5 {[%emt 0:03:43]} 31. Rg4 {[%emt 0:04:57]} h5 {[%emt 0:02:43]} 32. Rgf4 {[%emt 0:04:31]} Qd7 33. R1f3 Qe6 {[%emt 0:05:24]} 34. Kh2 {[%emt 0:04:45]} Rg5 35. Rf5 {[%emt 0:01:59]} Rxf5 {[%emt 0:03:20]} 36. Rxf5 {[%emt 0:00:06]} Qe3 {[%emt 0:11:05]} 37. Qc4 {[%emt 0:01:38]} h4 {[%emt 0:01:12]} 38. Rf3 {[%emt 0:00:13]} Qe4 {[%emt 0:02:21]} 39. Qd3 {[%emt 0:01:22]} Qxd3 {[%emt 0:05:50]} 40. Rxd3 {[%emt 0:00:02]} Rd7 {[%emt 0:00:07]} 41. Kg1 {[%emt 0:31:16]} f5 {[%emt 0:04:06]} 42. Kf2 {[%emt 0:00:00]} Kf7 43. g3 {[%emt 0:00:00]} hxg3+ {[%emt 0:00:11]} 44. Kxg3 {[%emt 0:00:00]} g5 {[%emt 0:00:56]} 45. Kf3 {[%emt 0:00:00]} Kg6 {[%emt 0:00:54]} 46. Kg3 {[%emt 0:00:00]} Kh5 {[%emt 0:00:56]} 47. a4 {[%emt 0:00:00]} a5 {[%emt 0:00:28]} 48. Rd1 {[%emt 0:00:00]} f4+ {[%emt 0:01:38]} 49. Kf3 {[%emt 0:00:00]} Kh4 {[%emt 0:01:18]} 50. Kg2 {[%emt 0:00:00]} g4 {[%emt 0:01:43]} 51. hxg4 {[%emt 0:00:00]} Kxg4 {[%emt 0:00:04]} 52. Kf2 {[%emt 0:00:00]} Rd8 {[%emt 0:06:05]} 53. Rd3 {[%emt 0:00:00]} Kf5 {[%emt 0:01:01]} 54. Kf3 {[%emt 0:00:00]} Rh8 {[%emt 0:00:06]} 55. Kg2 {[%emt 0:00:00]} Ke4 {[%emt 0:00:05]} 56. Rd1 {[%emt 0:00:18]} Rh7 {[%emt 0:00:39]} 57. Kg1 Rd7 {[%emt 0:02:38]} 58. Re1+ {[%emt 0:02:29]} Kd3 {[%emt 0:00:16]} 59. Rb1 {[%emt 0:01:03]} Rg7+ {[%emt 0:01:41]} 60. Kf2 {[%emt 0:00:28]} Kxd4 {[%emt 0:00:04]} 61. Kf3 {[%emt 0:00:34]} Kxc5 {[%emt 0:00:15]} 62. Kxf4 {[%emt 0:00:02]} Re7 {[%emt 0:00:15]} 63. Ra1 {[%emt 0:00:19]} Kb4 0-1

[Event "Asian Nation Cup Women 2018"]
[Site "Hamedan"]
[Date "2018.08.02"]
[Round "6"]
[White "Padmini, Rout"]
[Black "Dauletova, Gulmira"]
[Result "1-0"]
[ECO "B48"]
[WhiteElo "2338"]
[BlackElo "2287"]
[Annotator "NA"]
[PlyCount "101"]
[EventDate "2018.07.27"]
[EventType "swiss"]
[EventCountry "IRI"]
[SourceTitle "playchess.com"]
[Source "ChessBase"]
[SourceQuality "1"]
[WhiteTeam "India"]
[BlackTeam "Kazakhstan"]
[WhiteTeamCountry "IND"]
[BlackTeamCountry "KAZ"]
[TimeControl "40/5400+30:1800+30"]

1. e4 {[%emt 0:00:00]} c5 {[%emt 0:00:00]} 2. Nf3 {[%emt 0:00:00]} e6 {[%emt 0:00:00]} 3. d4 {[%emt 0:00:00]} cxd4 {[%emt 0:00:01]} 4. Nxd4 {[%emt 0:00:00]} Nc6 {[%emt 0:00:08]} 5. Nc3 {[%emt 0:00:00]} Qc7 {[%emt 0:00:32]} 6. Be3 {[%emt 0:00:02]} a6 {[%emt 0:00:14]} 7. Qf3 {[%emt 0:00:13] B48: Sizilianisch (Paulsen-Variante)} Nf6 {[%emt 0:00:18]} 8. O-O-O {[%emt 0:00:05]} Ne5 {[%emt 0:01:25] LiveBook: 76 Games} 9. Qg3 {[%emt 0:00:42]} b5 {[%emt 0:00:29]} 10. f4 {[%emt 0:00:13]} (10. a3 Bb7 11. Bxb5 Rc8 12. Ba4 Nxe4 13. Nxe4 Bxe4 14. Bf4 Qc4 15. Bxe5 Qxa4 {1-0 (38) Vachier Lagrave,M (2789)-Anand,V (2776) Karlsruhe/Baden-Baden 2018}) 10... Neg4 {[%emt 0:00:26]} 11. Bg1 {[%emt 0:00:56]} h5 {[%emt 0:00:45]} 12. h3 {[%emt 0:02:37]} b4 {[%emt 0:00:40]} 13. Nd5 $146 {[%emt 0:01:07]} ({Vorgänger:} 13. Nb1 Nxe4 14. Qe1 Qxf4+ {0-1 (41) Sylvan,J (2341)-Bjerre,J (2378) Ballerup 2018}) 13... Nxd5 {[%emt 0:00:29]} 14. exd5 {[%emt 0:04:34]} Nf6 {[%emt 0:00:09]} 15. dxe6 {[%emt 0:04:46]} dxe6 {[%emt 0:00:18]} 16. Bd3 {[%emt 0:07:02]} h4 {[%emt 0:02:17]} 17. Qf3 {[%emt 0:02:13]} Rb8 {[%emt 0:12:02] [#]} 18. f5 $1 {[%emt 0:11:13]} e5 {[%emt 0:14:12]} 19. Qc6+ {[%emt 0:07:16]} Qd7 {[%emt 0:00:48]} 20. Qxd7+ {[%emt 0:06:35]} Nxd7 {[%emt 0:08:34]} 21. Nc6 {[%emt 0:00:23]} Ra8 {[%emt 0:01:32]} 22. Bh2 {[%emt 0:14:30]} f6 {[%emt 0:31:11]} 23. Bc4 {[%emt 0:03:27]} a5 {[%emt 0:09:27]} 24. Rd2 {[%emt 0:14:02]} Bc5 {[%emt 0:05:45]} 25. Bg1 {[%emt 0:01:15]} Be7 $2 {[%emt 0:01:47]} (25... Bxg1 26. Rxg1 Ba6) 26. Be3 {[%emt 0:05:24]} Nf8 {[%emt 0:02:08]} 27. Bd5 $18 {[%emt 0:10:50]} Ra6 {[%emt 0:00:39]} 28. Rhd1 {[%emt 0:01:00]} Nd7 {[%emt 0:02:52]} 29. Nxe7 Kxe7 {[%emt 0:00:01]} 30. Bb7 {[%emt 0:01:43]} Nb8 {[%emt 0:01:48]} 31. Bc5+ {[%emt 0:00:34]} Kf7 {[%emt 0:00:07]} 32. Bd5+ {[%emt 0:00:37]} Ke8 {[%emt 0:00:04]} 33. Bc4 {[%emt 0:00:20]} Nc6 {[%emt 0:04:28]} 34. Bxa6 {[%emt 0:01:00]} Bxa6 {[%emt 0:00:04]} 35. Rd6 {[%emt 0:00:11]} Bb5 {[%emt 0:00:42]} 36. Re6+ {[%emt 0:00:24]} Kf7 {[%emt 0:00:05]} 37. Rd7+ {[%emt 0:00:07]} Kg8 {[%emt 0:00:02]} 38. Rb7 {[%emt 0:00:48]} Nd8 {[%emt 0:01:47]} 39. Rxb5 {[%emt 0:00:12]} Nxe6 {[%emt 0:00:02]} 40. fxe6 {[%emt 0:00:23]} Kh7 {[%emt 0:00:03]} 41. Rxa5 {[%emt 0:30:22]} e4 {[%emt 0:06:14]} 42. Bxb4 {[%emt 0:00:00]} Kg6 {[%emt 0:00:21]} 43. Rd5 {[%emt 0:00:00]} f5 {[%emt 0:04:12]} 44. e7 {[%emt 0:00:00]} Re8 {[%emt 0:00:35]} 45. Rd8 {[%emt 0:00:00]} Kf7 {[%emt 0:00:13]} 46. Rxe8 {[%emt 0:00:00]} Kxe8 {[%emt 0:00:03]} 47. a4 {[%emt 0:00:00]} f4 {[%emt 0:00:39]} 48. a5 {[%emt 0:00:00]} f3 {[%emt 0:01:10]} 49. gxf3 {[%emt 0:00:00]} exf3 {[%emt 0:00:02]} 50. Kd2 {[%emt 0:00:00]} g5 {[%emt 0:00:30]} 51. a6 {[%emt 0:00:00]} 1-0

[Event "Asian Nation Cup Women 2018"]
[Site "Hamedan"]
[Date "2018.08.02"]
[Round "6"]
[White "Kurbonboeva, Sarvinoz"]
[Black "Alinasab, Mobina"]
[Result "1/2-1/2"]
[ECO "A21"]
[WhiteElo "2241"]
[BlackElo "2281"]
[Annotator "NA"]
[PlyCount "107"]
[EventDate "2018.07.27"]
[EventType "swiss"]
[EventCountry "IRI"]
[SourceTitle "playchess.com"]
[Source "ChessBase"]
[SourceQuality "1"]
[WhiteTeam "Uzbekistan"]
[BlackTeam "Iran"]
[WhiteTeamCountry "UZB"]
[BlackTeamCountry "IRI"]
[TimeControl "40/5400+30:1800+30"]

1. c4 {[%emt 0:00:00] Metz Alekhine/Primel,D} e5 {[%emt 0:00:00]} 2. Nc3 {[%emt 0:00:00]} d6 {[%emt 0:00:00]} 3. g3 {[%emt 0:01:17]} f5 {[%emt 0:00:09]} 4. Bg2 {[%emt 0:00:49]} Nf6 {[%emt 0:00:30]} 5. d3 {[%emt 0:05:11]} c6 {[%emt 0:01:22]} 6. e4 {[%emt 0:03:25]} Be7 {[%emt 0:00:20]} 7. Nge2 {[%emt 0:02:01]} O-O {[%emt 0:00:33] A21: English Opening: 1...e5 2 Nc3} 8. O-O {[%emt 0:00:46]} Na6 {[%emt 0:00:47]} 9. d4 {[%emt 0:16:52]} Qe8 {[%emt 0:13:47]} 10. c5 {[%emt 0:28:42]} exd4 $146 {[%emt 0:02:34]} ({Predecessor:} 10... Nxe4 11. Nxe4 fxe4 12. cxd6 Bxd6 13. Nc3 exd4 14. Qxd4 {½-½ (72) Colovic,A (2436)-Solodovnichenko,Y (2615) Metz 2012 EXT 2013 [Metz Alekhine/Primel,D]}) 11. cxd6 {[%emt 0:08:15]} Bxd6 {[%emt 0:05:14]} 12. Qxd4 {[%emt 0:04:07]} Bc5 {[%emt 0:02:03]} 13. Qd3 {[%emt 0:01:39]} fxe4 {[%emt 0:13:33]} 14. Nxe4 {[%emt 0:00:31]} Nxe4 {[%emt 0:00:09]} 15. Qxe4 {[%emt 0:04:26]} Bf5 {[%emt 0:03:32]} 16. Qc4+ {[%emt 0:01:44]} Be6 {[%emt 0:00:44]} 17. Qc2 {[%emt 0:01:00]} Qf7 {[%emt 0:02:20]} 18. Bf4 {[%emt 0:06:00]} Bf5 {[%emt 0:00:53]} 19. Qc3 {[%emt 0:01:32]} Rad8 {[%emt 0:07:31]} 20. Rad1 {[%emt 0:09:20]} Bg4 {[%emt 0:00:26]} 21. Rxd8 {[%emt 0:00:46]} Rxd8 {[%emt 0:00:02]} 22. Nc1 {[%emt 0:00:20]} Bd4 {[%emt 0:01:15]} 23. Qd2 {[%emt 0:01:04]} Bf6 {[%emt 0:01:31]} 24. Qe3 {[%emt 0:01:00]} Bxb2 {[%emt 0:01:58]} 25. Nb3 {[%emt 0:00:44]} Be6 {[%emt 0:02:38]} 26. Qxa7 {[%emt 0:00:56]} Bxb3 {[%emt 0:00:57]} 27. Qb6 {[%emt 0:00:01]} Rd7 {[%emt 0:06:12]} 28. Qxb3 {[%emt 0:00:48]} Qxb3 {[%emt 0:02:12]} 29. axb3 {[%emt 0:00:00]} Nb4 {[%emt 0:01:10]} 30. Bh3 {[%emt 0:01:05]} Rd8 {[%emt 0:00:21]} 31. Be6+ {[%emt 0:00:34]} Kh8 $14 {[%emt 0:00:39]} 32. Be3 {[%emt 0:00:23]} Nd5 {[%emt 0:01:15]} 33. Rd1 {[%emt 0:00:31]} Bf6 {[%emt 0:00:02]} 34. Bc5 {[%emt 0:00:32]} g5 {[%emt 0:03:44]} 35. f3 {[%emt 0:00:27]} Kg7 {[%emt 0:00:49]} 36. Kf2 {[%emt 0:00:19]} b6 {[%emt 0:00:11]} 37. Be3 {[%emt 0:00:41]} Rd6 {[%emt 0:02:43]} 38. Bh3 {[%emt 0:00:34]} c5 {[%emt 0:00:44]} 39. f4 {[%emt 0:00:28]} gxf4 {[%emt 0:01:14]} 40. gxf4 {[%emt 0:00:01]} Rd8 {[%emt 0:00:42]} 41. Be6 {[%emt 0:30:53]} Nc7 {[%emt 0:35:34]} 42. Rg1+ {[%emt 0:00:44]} Kh8 {[%emt 0:01:04]} 43. Bf7 {[%emt 0:00:00]} Rf8 {[%emt 0:00:00]} 44. Bc4 {[%emt 0:00:00]} Rd8 {[%emt 0:00:00]} 45. Kf3 {[%emt 0:00:00]} Bg7 {[%emt 0:00:00]} 46. h4 {[%emt 0:00:00]} Ne8 {[%emt 0:00:00]} 47. Rg2 {[%emt 0:00:00]} Nd6 {[%emt 0:00:00]} 48. Rd2 {[%emt 0:00:00]} Bf6 {[%emt 0:00:00]} 49. h5 {[%emt 0:00:00]} Nf5 {[%emt 0:00:00]} 50. Rxd8+ {[%emt 0:00:00]} Bxd8 {[%emt 0:00:00]} 51. Be6 {[%emt 0:00:00]} Ng7 {[%emt 0:00:00]} 52. Bf7 {[%emt 0:00:00]} Nf5 {[%emt 0:00:00]} 53. Be6 {[%emt 0:00:00]} Ng7 {[%emt 0:00:00]} 54. Bf7 {[%emt 0:00:00]} 1/2-1/2

[Event "Asian Nation Cup Women 2018"]
[Site "Hamedan"]
[Date "2018.08.02"]
[Round "6"]
[White "Zahedifar, Anahita"]
[Black "Gevorgyan, Irina"]
[Result "1/2-1/2"]
[ECO "D31"]
[WhiteElo "2101"]
[BlackElo "2254"]
[Annotator "RC"]
[PlyCount "51"]
[EventDate "2018.07.27"]
[EventType "swiss"]
[EventCountry "IRI"]
[SourceTitle "playchess.com"]
[Source "ChessBase"]
[SourceQuality "1"]
[WhiteTeam "Iran"]
[BlackTeam "Uzbekistan"]
[WhiteTeamCountry "IRI"]
[BlackTeamCountry "UZB"]
[TimeControl "40/5400+30:1800+30"]

1. d4 {[%emt 0:00:00]} d5 {[%emt 0:00:00]} 2. c4 {[%emt 0:00:00]} e6 {[%emt 0:00:00]} 3. Nc3 {[%emt 0:00:00]} c6 {[%emt 0:00:54]} 4. e4 {[%emt 0:00:03]} dxe4 {[%emt 0:00:05]} 5. Nxe4 {[%emt 0:00:05]} Bb4+ {[%emt 0:01:10]} 6. Bd2 {[%emt 0:00:12]} Qxd4 {[%emt 0:16:04]} 7. Bxb4 {[%emt 0:00:05]} Qxe4+ {[%emt 0:00:04]} 8. Ne2 {[%emt 0:00:32]} Na6 {[%emt 0:00:21]} 9. Bf8 {[%emt 0:00:29]} Qg6 {[%emt 0:01:26]} 10. Qd6 {[%emt 0:02:38]} f5 {[%emt 0:00:06]} 11. O-O-O {[%emt 0:01:09]} Qf6 {[%emt 0:00:11]} 12. Qd8+ {[%emt 0:00:18]} Kf7 {[%emt 0:00:47]} 13. Ba3 {[%emt 0:11:24]} Qxd8 {[%emt 0:00:18]} 14. Rxd8 {[%emt 0:00:01]} c5 {[%emt 0:00:12]} 15. b3 {[%emt 0:02:36]} Ke7 {[%emt 0:07:57]} 16. Bb2 {[%emt 0:01:19]} Kxd8 {[%emt 0:00:46]} 17. Bxg7 {[%emt 0:00:06]} Ke7 {[%emt 0:00:07]} 18. Bxh8 {[%emt 0:01:20]} Nf6 {[%emt 0:00:40]} 19. Bxf6+ {[%emt 0:05:49]} Kxf6 {[%emt 0:00:08]} 20. g3 {[%emt 0:01:51]} Nb4 {[%emt 0:14:03]} 21. Nc3 {[%emt 0:08:06]} Bd7 {[%emt 0:03:02]} 22. Bg2 {[%emt 0:04:12]} Rb8 {[%emt 0:16:12]} 23. Rd1 {[%emt 0:05:27]} Ke7 {[%emt 0:01:15]} 24. f4 {[%emt 0:01:25]} a6 {[%emt 0:07:05]} 25. a3 {[%emt 0:15:20]} Nc6 {[%emt 0:00:18]} 26. Re1 {[%emt 0:04:08]} 1/2-1/2

[Event "Asian Nation Cup Women 2018"]
[Site "Hamedan"]
[Date "2018.08.02"]
[Round "6"]
[White "Baymuratova, Sevara"]
[Black "Hamedi Nia, Vesal"]
[Result "1-0"]
[ECO "D58"]
[WhiteElo "2099"]
[BlackElo "2066"]
[Annotator "NA"]
[PlyCount "55"]
[EventDate "2018.07.27"]
[EventType "swiss"]
[EventCountry "IRI"]
[SourceTitle "playchess.com"]
[Source "ChessBase"]
[SourceQuality "1"]
[WhiteTeam "Uzbekistan"]
[BlackTeam "Iran"]
[WhiteTeamCountry "UZB"]
[BlackTeamCountry "IRI"]
[TimeControl "40/5400+30:1800+30"]

1. d4 {[%emt 0:00:00]} d5 {[%emt 0:00:00]} 2. Nf3 {[%emt 0:00:00]} Nf6 {[%emt 0:00:00]} 3. c4 {[%emt 0:00:00]} e6 {[%emt 0:00:00]} 4. Nc3 {[%emt 0:01:20]} Be7 {[%emt 0:00:11]} 5. Bg5 {[%emt 0:00:14]} O-O {[%emt 0:00:14]} 6. e3 {[%emt 0:00:10]} h6 {[%emt 0:00:39]} 7. Bh4 {[%emt 0:00:08]} b6 {[%emt 0:01:05]} 8. Rc1 {[%emt 0:03:24]} Bb7 {[%emt 0:00:57]} 9. cxd5 {[%emt 0:00:41]} Nxd5 {[%emt 0:00:57]} 10. Bg3 {[%emt 0:06:45]} c5 {[%emt 0:12:21]} 11. Be2 {[%emt 0:04:46]} Nd7 {[%emt 0:13:47]} 12. O-O {[%emt 0:01:28]} N7f6 {[%emt 0:04:08]} 13. dxc5 {[%emt 0:03:32]} Bxc5 {[%emt 0:00:40]} 14. Nxd5 {[%emt 0:06:14]} Bxd5 {[%emt 0:07:28]} 15. a3 $11 {[%emt 0:00:10]} Ne4 {[%emt 0:05:55]} 16. Be5 {[%emt 0:01:47]} Qd7 {[%emt 0:10:00]} 17. b4 {[%emt 0:05:02]} Bd6 {[%emt 0:01:40]} 18. Qd4 {[%emt 0:07:07]} Bxe5 {[%emt 0:02:02]} 19. Nxe5 {[%emt 0:00:08]} Qb7 {[%emt 0:00:19]} 20. f3 {[%emt 0:02:02]} Nf6 {[%emt 0:21:11]} 21. e4 {[%emt 0:01:42]} Bb3 {[%emt 0:04:29]} 22. b5 {[%emt 0:13:20]} Qe7 {[%emt 0:09:13]} 23. Qb2 {[%emt 0:00:18]} Ba4 {[%emt 0:03:32]} 24. Nc6 {[%emt 0:06:17]} Qd7 {[%emt 0:00:37]} 25. Rc4 {[%emt 0:01:04]} a6 {[%emt 0:00:30]} 26. Rxa4 {[%emt 0:00:16]} axb5 {[%emt 0:00:16]} 27. Rxa8 {[%emt 0:00:23]} Rxa8 {[%emt 0:00:05]} 28. Bxb5 {[%emt 0:00:10]} 1-0

[Event "Asian Nation Cup Women 2018"]
[Site "Hamedan"]
[Date "2018.08.03"]
[Round "7"]
[White "Wang, Jue"]
[Black "Kurbonboeva, Sarvinoz"]
[Result "1/2-1/2"]
[ECO "B76"]
[WhiteElo "2370"]
[BlackElo "2241"]
[Annotator "NA"]
[PlyCount "37"]
[EventDate "2018.07.27"]
[EventType "swiss"]
[EventCountry "IRI"]
[SourceTitle "playchess.com"]
[Source "ChessBase"]
[SourceQuality "1"]
[WhiteTeam "China"]
[BlackTeam "Uzbekistan"]
[WhiteTeamCountry "CHN"]
[BlackTeamCountry "UZB"]
[TimeControl "40/5400+30:1800+30"]

1. e4 {[%emt 0:00:00]} c5 {[%emt 0:00:00]} 2. Nc3 {[%emt 0:00:02]} d6 {[%emt 0:00:14]} 3. Nge2 {[%emt 0:00:12]} Nc6 {[%emt 0:01:35]} 4. d4 {[%emt 0:00:09]} cxd4 {[%emt 0:00:19]} 5. Nxd4 {[%emt 0:00:06]} g6 {[%emt 0:01:02]} 6. Be3 {[%emt 0:01:58]} Nf6 {[%emt 0:01:04]} 7. f3 {[%emt 0:00:35]} Bg7 {[%emt 0:00:22]} 8. Qd2 {[%emt 0:00:07]} O-O {[%emt 0:00:28]} 9. O-O-O {[%emt 0:00:27]} d5 {[%emt 0:00:34]} 10. Qe1 {[%emt 0:00:03]} e5 {[%emt 0:00:32]} 11. Nxc6 {[%emt 0:00:07]} bxc6 {[%emt 0:00:07]} 12. exd5 {[%emt 0:00:02]} Nxd5 {[%emt 0:00:17]} 13. Bc4 {[%emt 0:00:20]} Be6 {[%emt 0:01:56]} 14. Ne4 {[%emt 0:00:16]} Qc7 {[%emt 0:03:18]} 15. Bc5 {[%emt 0:00:29]} Rfd8 {[%emt 0:00:20]} 16. Kb1 {[%emt 0:00:38]} Nf4 {[%emt 0:08:00]} 17. Bxe6 {[%emt 0:00:11]} Rxd1+ {[%emt 0:00:35]} 18. Qxd1 {[%emt 0:00:04]} Nxe6 {[%emt 0:00:10]} 19. Qd6 {[%emt 0:00:05]} 1/2-1/2